Cogmind - Beta 16.1 @@@ ROGUE MODE // 2026.04.04 @ 17:20:02 Player: Ammie Result: Destroyed by L-31 Rogue with Katana Performance ------------- Evolutions (2) 1000 Regions Visited (7) 1400 Robots Destroyed (71) 355 Value Destroyed (2711) 2711 Prototype IDs (30) 600 Alien Tech Used (0) 0 Bonus (1713) 1713 TOTAL SCORE: 7779 Bonus ------- High Alert Combat Kills 348 Follower Combat Kills 420 Entered Garrisons 200 Used RIF Installer 500 Aligned with FarCom 300 Friendly Fire -55 Cogmind --------- Core Integrity 0/550 Matter 300/300 Energy 81/290 System Corruption 8% Temperature Cool (4) Movement Core (350) Ox6 Location -8/Materials Parts ------- > --- POWER (2) -------- Reinforced Deuterium Engine > --- PROPULSION (4) --- (None) > --- UTILITY (3) ------ Small Storage Unit Relay Coupler [Specialist] (10) > --- WEAPON (2) ------- (None) > --- INVENTORY (8) ---- Improved Hacking Suite Relay Coupler [Sentry] (24) Relay Coupler [Hunter] (12) Sensor Drone Bay (20/20) Proton Cannon Hypervelocity Gauss Rifle Heavy Flak Cannon Remote Datajack Peak State ------------ > --- POWER ------------ Reinforced Deuterium Engine Reinforced Deuterium Engine > --- PROPULSION ------- Flying Fortress v7 > --- UTILITY ---------- Small Storage Unit Force Field Relay Coupler [Specialist] > --- WEAPON ----------- Plasma Rifle Proton Cannon > --- INVENTORY -------- Improved Hacking Suite Relay Coupler [Sentry] Relay Coupler [Hunter] Sensor Drone Bay Hypervelocity Gauss Rifle Heavy Flak Cannon Advanced EMP Blaster Remote Datajack [Rating: 65] Favorites ----------- Power Light Deuterium Engine Engine Light Deuterium Engine Power Core Micro Nuclear Core Propulsion Aluminum Leg Leg Aluminum Leg Flight Unit Flying Fortress v7 Utility Small Storage Unit Device Improved Heat Sink Storage Small Storage Unit Hackware Relay Coupler [Specialist] Protection Layered Light Armor Plating Weapon EM Pulse Cannon Energy Gun EM Pulse Gun Energy Cannon EM Pulse Cannon Ballistic Gun Assault Rifle Ballistic Cannon Assault Cannon Launcher Advanced EMP Blaster Special Weapon Remote Datajack Build | -11 -10 -10 -10 -9 -8 -8 -8 ------- Run | Yrd Mat Min Exi Min Mat Gar Mat Slots Evolved 4 | . . . . . 4 . . Power 1 | . . . . . 1 . . Propulsion 2 | . . . . . 2 . . Utility 1 | . . . . . 1 . . Weapon . | . . . . . . . . Parts Attached 60 | 6 7 . . 9 15 23 . Power 11 | 1 1 . . 2 3 4 . Engine 9 | 1 1 . . 1 3 3 . Core 2 | . . . . 1 . 1 . Reactor . | . . . . . . . . Propulsion 13 | 2 2 . . 3 1 5 . Treads . | . . . . . . . . Leg 12 | 2 2 . . 3 . 5 . Wheel . | . . . . . . . . Hover . | . . . . . . . . Flight 1 | . . . . . 1 . . Utility 11 | 1 1 . . 2 1 6 . Device 7 | . 1 . . 2 1 3 . Storage 1 | 1 . . . . . . . Processor . | . . . . . . . . Hackware 2 | . . . . . . 2 . Protection 1 | . . . . . . 1 . Artifact . | . . . . . . . . Weapon 25 | 2 3 . . 2 10 8 . Energy Gun 8 | 1 1 . . . 4 2 . Energy Cannon 7 | . 1 . . . 3 3 . Ballistic Gun 5 | 1 1 . . 2 1 . . Ballistic Cannon 2 | . . . . . 1 1 . Launcher 2 | . . . . . 1 1 . Special Weapon 1 | . . . . . . 1 . Impact Weapon . | . . . . . . . . Slashing Weapon . | . . . . . . . . Piercing Weapon . | . . . . . . . . Special Melee Weapon . | . . . . . . . . Unidentified Prototypes 7 | . . . . 2 5 . . Parts Lost 8 | . 1 . . 1 . 3 3 Power 2 | . . . . . . 2 . Propulsion 1 | . . . . . . . 1 Utility 1 | . . . . . . 1 . Weapon 4 | . 1 . . 1 . . 2 Highest Loss Streak 2 | . 1 . . 1 . 1 2 To Critical Strikes . | . . . . . . . . Average Backups 6 | 1 4 6 5 4 7 7 8 Power 1 | . 1 2 2 1 1 1 . Propulsion . | . 1 2 1 1 . . . Utility 2 | . . . . 1 2 4 4 Weapon 2 | . 1 2 2 1 3 2 3 Tool/Special . | . . . . . . . . Unused Backups 11 | . . . . . 4 3 4 Power 1 | . . . . . 1 . . Propulsion . | . . . . . . . . Utility 6 | . . . . . . 3 3 Weapon 4 | . . . . . 3 . 1 Tool/Special . | . . . . . . . . Average Slot Usage (%) 85 | . 88 100 92 97 71 82 61 Engine 13 | . 14 14 14 10 17 12 18 Core 2 | . . . . 3 . 4 . Leg 17 | . 28 28 28 28 . 14 . Flight 3 | . . . . . 8 5 1 Device 11 | . 3 14 7 12 18 11 8 Storage 10 | . 14 14 14 14 9 8 9 Hackware 3 | . . . . . . 6 9 Energy Gun 5 | . 10 14 14 5 7 1 7 Energy Cannon 10 | . . 14 14 14 10 11 . Ballistic Gun 2 | . 16 . . 8 . . . Special Weapon 2 | . . . . . . 4 1 Peak Build Rating 65 | 6 7 7 10 22 60 65 64 Average Rating 37 | 4 6 7 8 18 56 52 35 On Entrance 21 | . 6 7 7 9 21 58 64 Avg Prop Armor Cover (%) 10 | . . . . . . 10 . Naked Turns . | . . . . . . . . Heaviest Build 54 | 12 16 16 16 32 46 54 52 Greatest Support 59 | 20 20 20 20 23 50 59 50 Greatest Overweight (x) 17 | . . . . 1 . 7 17 Average Overweight (x) . | . . . . . . . 4 Largest Inventory Capacity 8 | 8 8 8 8 8 8 8 8 Average Capacity 7 | 5 8 8 8 8 8 7 8 Most Carried 8 | 3 6 6 8 8 8 8 8 Average Carried 7 | 1 4 6 7 7 7 7 8 Final Capacity 8 | 8 8 8 8 8 8 8 8 Final Carried 8 | 2 6 6 8 8 8 8 8 Class Distribution -------------------- 74% | Mutant 22% | Scavenger-Mutant 3% | Commander-Mutant Dominant Class ---------------- Mutant | -10/Materials Mutant | -10/Mines Mutant | -10/Exiles Mutant | -9/Mines Mutant | -8/Materials Mutant | -8/Garrison Mutant | -8/Materials Resources | -11 -10 -10 -10 -9 -8 -8 -8 ----------- Run | Yrd Mat Min Exi Min Mat Gar Mat Matter Collected 1734 | 129 372 . . 138 205 880 10 Remotely . | . . . . . . . . Salvage Created 2368 | . 520 . . 249 761 838 . Parts 153 | . 33 . . 13 45 62 . Haulers Intercepted 5 | . 2 . . . 3 . . Recyclers Shooed 4 | . 3 . . . 1 . . Parts Field Recycled . | . . . . . . . . Retrieved Matter . | . . . . . . . . Parts Self-Destructed . | . . . . . . . . Prevented . | . . . . . . . . Parts Restored . | . . . . . . . . Kills | -11 -10 -10 -10 -9 -8 -8 -8 ------- Run | Yrd Mat Min Exi Min Mat Gar Mat Combat Hostiles Destroyed 57 | . 11 . . 7 14 25 . Guns 16 | . 11 . . 2 2 1 . Cannons 27 | . . . . 5 10 12 . AOE 13 | . . . . . 2 11 . Classes Destroyed 12 | . 7 . . 1 1 3 . Worker 3 | . 1 . . . 2 . . Builder 1 | . 1 . . . . . . Hauler 5 | . 2 . . . 3 . . Recycler 1 | . 1 . . . . . . Watcher 4 | . 1 . . . 3 . . Swarmer 33 | . 7 . . 2 8 16 . Grunt 13 | . 4 . . 4 3 2 . Duelist 1 | . . . . 1 . . . Sentry 4 | . . . . . 3 1 . Specialist 2 | . . . . . . 2 . Programmer 3 | . . . . . . 3 . Behemoth 1 | . . . . . . 1 . Best Kill Streak 9 | . 4 . . 1 5 9 . Combat Bots Only 9 | . 3 . . 1 4 9 . Max Kills in Single Turn 5 | . 2 . . 1 2 5 . Gunslinging . | . . . . . . . . Exploded 5 | . . . . . 2 5 . Melee . | . . . . . . . . Uniques/NPCs Destroyed . | . . . . . . . . Combat | -11 -10 -10 -10 -9 -8 -8 -8 -------- Run | Yrd Mat Min Exi Min Mat Gar Mat Hostile Shots Fired 431 | . 68 . . 56 70 183 54 Missed 158 | . 18 . . 14 31 72 23 Hits 273 | . 50 . . 42 39 111 31 Melee 15 | . . . . 3 . . 12 Projectile 258 | . 50 . . 39 39 111 19 Critical Strikes 10 | . . . . 1 2 4 3 Damage Taken 3685 | . 452 . . 508 458 1763 504 Core 701 | . 65 . . 63 . 395 178 Absorbed by Shields 209 | . . . . . . . 209 Core Remaining (%) 74 | 100 . . . 48 . . . Volleys Fired 325 | . 58 . . 30 55 179 3 Largest 2 | . 2 . . 2 2 2 2 Hottest 150 | . 70 . . 100 138 150 111 Shots Fired 510 | . 112 . . 49 107 236 6 Gun 209 | . 112 . . 22 32 40 3 Cannon 273 | . . . . 27 75 171 . Launcher 12 | . . . . . . 9 3 Special 16 | . . . . . . 16 . Kinetic 79 | . 64 . . 12 1 2 . Thermal 197 | . 42 . . 27 51 74 3 Explosive . | . . . . . . . . Electromagnetic 218 | . 6 . . 10 55 144 3 Robot Hit Streak 12 | . 6 . . 4 5 12 3 Robot Miss Streak 7 | . 4 . . 4 6 7 2 Penetration Max . | . . . . . . . . Secondary Targets . | . . . . . . . . Shots Hit Robots 215 | . 58 . . 25 54 75 3 Core Hits 89 | . 25 . . 9 22 28 5 Critical Kills . | . . . . . . . . Critical Parts Destroyed 1 | . 1 . . . . . . Critical Strikes 5 | . 3 . . . . 2 . Burn 1 | . 1 . . . . . . Destroy 1 | . 1 . . . . . . Corrupt 3 | . 1 . . . . 2 . Melee Attacks . | . . . . . . . . Impact . | . . . . . . . . Slashing . | . . . . . . . . Piercing . | . . . . . . . . Sneak Attacks . | . . . . . . . . Combat Hostiles . | . . . . . . . . Follow-up Attacks . | . . . . . . . . Damage Inflicted 5414 | . 796 . . 380 1732 2045 461 Guns 1159 | . 745 . . 118 206 48 42 Cannons 3044 | . . . . 262 1239 1543 . Explosions 1203 | . 43 . . . 287 454 419 Melee . | . . . . . . . . Ramming 8 | . 8 . . . . . . Kinetic 582 | . 467 . . 57 . 58 . Thermal 2224 | . 268 . . 262 727 925 42 Explosive . | . . . . . . . . Electromagnetic 2600 | . 53 . . 61 1005 1062 419 Impact . | . . . . . . . . Slashing . | . . . . . . . . Piercing . | . . . . . . . . Highest Corruption 8 | . . . . . 5 8 8 Average Corruption 6 | . . . . . 5 6 8 Corruption Purged . | . . . . . . . . Corruption Blocked . | . . . . . . . . Effects 152 | . . . . . 6 141 5 Message Errors 29 | . . . . . 2 27 . Matter Fused 39 | . . . . . 2 37 . Heat Flow Errors 14 | . . . . . . 13 1 Energy Discharges 18 | . . . . . 1 15 2 Parts Rejected 1 | . . . . . . 1 . Parts Fused 2 | . . . . . . 2 . Data Loss (minor) 18 | . . . . . . 18 . Data Loss (major) 11 | . . . . . . 10 1 Misfires 11 | . . . . . 1 9 1 Alerts 2 | . . . . . . 2 . Weapon Failures 7 | . . . . . . 7 . Overload Shots . | . . . . . . . . Overflow Damage 76 | . . . . . 33 43 . Projectiles 65 | . . . . . 30 35 . Explosions 11 | . . . . . 3 8 . Melee . | . . . . . . . . Knockbacks . | . . . . . . . . Impact . | . . . . . . . . Kinetic . | . . . . . . . . Secondary . | . . . . . . . . Self-Inflicted Damage 60 | . . . . . . 45 15 Shots 4 | . . . . . . 3 1 Rammed . | . . . . . . . . Targets Rammed 1 | . 1 . . . . . . Kicked 1 | . 1 . . . . . . Crushed . | . . . . . . . . Highest Temperature 729 | . 258 . . 296 367 729 247 Average Temperature 101 | . 82 . . 90 123 99 92 Received Heat Transfer 710 | . 114 . . 165 144 168 119 Effects 23 | . . . . 1 2 20 . Shutdowns 7 | . . . . . 1 6 . Energy Bleed 2 | . . . . . 1 1 . Interference 11 | . . . . 1 . 10 . Matter Decay 1 | . . . . . . 1 . Damage (core) 2 | . . . . . . 2 . Siege Activations . | . . . . . . . . Martial Activations . | . . . . . . . . Shielding Activations . | . . . . . . . . Robots Disrupted . | . . . . . . . . Combat Hostiles . | . . . . . . . . Robots Corrupted 3 | . . . . . 2 1 . Combat Hostiles 1 | . . . . . . 1 . Parts Fried 12 | . 1 . . . 4 7 . Impact Corruptions . | . . . . . . . . Robots Melted . | . . . . . . . . Combat Hostiles . | . . . . . . . . Parts Melted 5 | . . . . 1 1 3 . Heat Transferred 3893 | . 790 . . 555 1151 1297 100 Parts Sabotaged . | . . . . . . . . Parts Stolen . | . . . . . . . . Parts Stripped . | . . . . . . . . Power Chain Reactions 7 | . 1 . . . 4 2 . Alert | -11 -10 -10 -10 -9 -8 -8 -8 ------- Run | Yrd Mat Min Exi Min Mat Gar Mat Maximum Alert Level 5 | . . . . . 2 5 5 Low Security (%) 39 | 100 100 100 . 100 66 . . Level 1 6 | . . . . . 30 4 . Level 2 13 | . . . . . 3 23 . Level 3 7 | . . . . . . 13 . Level 4 9 | . . . . . . 17 13 Level 5 24 | . . . . . . 41 86 High Security . | . . . . . . . . Max Security . | . . . . . . . . Peak Influence 3160 | . 101 4 . 113 532 3160 1695 Initial 1540 | . . 4 . . . 348 1540 Average 888 | . 46 . . 38 119 1519 1648 Influence Increases 4762 | . 328 . . 392 835 3042 165 Destroy 0b10 Robot/C 1540 | . 220 . . 300 280 740 . Destroy 0b10 Robot/NC 80 | . 30 . . 5 40 5 . Destroy Leader 168 | . 36 . . 50 62 20 . Allied During Kill 75 | . . . . 30 . 45 . Successful Hack 20 | . 9 . . 7 4 . . Disable Machine 75 | . . . . . 60 . 15 Anti-Garrison Action 2200 | . . . . . . 2050 150 Destroy Structure 169 | . 3 . . . 29 137 . Partial Spotted 15 | . . . . . 15 . . Lose Combat Pursuer 420 | . 30 . . . 345 45 . Influence Decreases 3137 | . 317 11 . 392 299 418 1700 Entered New Map 1815 | . . 7 . . . 188 1620 Time Decay 994 | . 307 4 . 334 299 . 50 Lost Part 80 | . 10 . . 10 . 30 30 Lost Ally 248 | . . . . 48 . 200 . Squads Dispatched 7 | . 1 . . . 2 . 4 Investigation . | . . . . . . . . Extermination . | . . . . . . . . Reinforcement 5 | . 1 . . . 2 . 2 Assault 2 | . . . . . . . 2 Garrison . | . . . . . . . . Intercept . | . . . . . . . . Searches Triggered . | . . . . . . . . Construction Impeded 1 | . . . . . . . 1 Haulers Reinforced . | . . . . . . . . Active Scanning Responses . | . . . . . . . . Cargo Convoy Interrupts . | . . . . . . . . Stealth | -11 -10 -10 -10 -9 -8 -8 -8 --------- Run | Yrd Mat Min Exi Min Mat Gar Mat Distress Signals 5 | . 1 . . . 4 . . Communications Jammed . | . . . . . . . . Distress Signals . | . . . . . . . . Times Spotted 123 | . 18 . . 14 34 41 16 Peak Tracking Total 10 | . 5 . . 4 10 10 8 Tactical Retreats 14 | . 1 . . . 11 2 . Traps | -11 -10 -10 -10 -9 -8 -8 -8 ------- Run | Yrd Mat Min Exi Min Mat Gar Mat Traps Triggered 2 | . . . . . . 2 . Indirectly 1 | . . . . . . 1 . Trap Hack Attempts . | . . . . . . . . Triggered . | . . . . . . . . Disarmed . | . . . . . . . . Reprogrammed . | . . . . . . . . Reused . | . . . . . . . . Traps Extracted . | . . . . . . . . Installed . | . . . . . . . . Triggered . | . . . . . . . . Machines | -11 -10 -10 -10 -9 -8 -8 -8 ---------- Run | Yrd Mat Min Exi Min Mat Gar Mat Machines Disabled 12 | . . . . . 4 6 2 Max in Single Turn 2 | . . . . . 2 1 2 Garrison Access 1 | . . . . . . . 1 Garrison Relay 5 | . . . . . . 5 . Machines Repaired . | . . . . . . . . Machines Dismantled . | . . . . . . . . Machines Sabotaged . | . . . . . . . . Overloaded Fab Kills . | . . . . . . . . Hacking | -11 -10 -10 -10 -9 -8 -8 -8 --------- Run | Yrd Mat Min Exi Min Mat Gar Mat Machines Accessed 13 | . 3 . 4 2 3 1 . Terminals 7 | . 3 . . 1 2 1 . Fabricators . | . . . . . . . . Repair Stations . | . . . . . . . . Recycling Units . | . . . . . . . . Scanalyzers . | . . . . . . . . Garrison Access 1 | . . . . . 1 . . Total Hacks 53 | . 6 . 41 2 3 1 . Successful 47 | . 3 . 41 2 1 . . Failed 6 | . 3 . . . 2 1 . Catastrophic 3 | . 1 . . . 1 1 . Database Lockouts . | . . . . . . . . Manual 3 | . . . 1 . 2 . . Terminals 10 | . 6 . . 1 2 1 . Fabricators . | . . . . . . . . Repair Stations . | . . . . . . . . Recycling Units . | . . . . . . . . Scanalyzers . | . . . . . . . . Garrison Access 1 | . . . . . 1 . . Terminal Hacks 46 | . 3 . 41 2 . . . Record 40 | . . . 40 . . . . Open Door 1 | . . . . 1 . . . Locate Traps 2 | . 2 . . . . . . Patrol Status 1 | . . . . 1 . . . Zone Layout 1 | . 1 . . . . . . Proto ID Catalog 1 | . . . 1 . . . . Fabricator Hacks . | . . . . . . . . Repair Station Hacks . | . . . . . . . . Recycling Unit Hacks . | . . . . . . . . Scanalyzer . | . . . . . . . . Garrison Access Hacks 1 | . . . . . 1 . . Unlock Access 1 | . . . . . 1 . . Unauthorized Hacks . | . . . . . . . . Terminals . | . . . . . . . . Fabricators . | . . . . . . . . Repair Stations . | . . . . . . . . Recycling Units . | . . . . . . . . Scanalyzers . | . . . . . . . . Garrison Access . | . . . . . . . . Data Cores Recovered . | . . . . . . . . Used . | . . . . . . . . Hacking Detections 5 | . 3 . . . 1 1 . Full Trace Events . | . . . . . . . . Feedback Events . | . . . . . . . . Feedback Blocked . | . . . . . . . . Robot Schematics Acquired . | . . . . . . . . Robots Built . | . . . . . . . . Authchips . | . . . . . . . . Time . | . . . . . . . . Total Robot Build Rating . | . . . . . . . . Part Schematics Acquired . | . . . . . . . . Parts Built . | . . . . . . . . Authchips . | . . . . . . . . Time . | . . . . . . . . Total Part Build Rating . | . . . . . . . . Part Studies Acquired . | . . . . . . . . Parts Repaired . | . . . . . . . . Time . | . . . . . . . . Parts Recycled . | . . . . . . . . Recycled Matter . | . . . . . . . . Retrieved Matter . | . . . . . . . . Retrieved Components . | . . . . . . . . Parts Scanalyzed . | . . . . . . . . Part Schematics Acquired . | . . . . . . . . Parts Damaged . | . . . . . . . . Bothacking | -11 -10 -10 -10 -9 -8 -8 -8 ------------ Run | Yrd Mat Min Exi Min Mat Gar Mat Used RIF Installer 1 | . . . . . . 1 . Robots Hacked 3 | . . . . . . 3 . Non-combat . | . . . . . . . . Combat 3 | . . . . . . 3 . Robot Hacks Applied 3 | . . . . . . 3 . amplify_resonance 1 | . . . . . . 1 . formatsys_high 2 | . . . . . . 2 . Relay Couplers Released 25 | . . . . . . 23 2 Machine Destruction 25 | . . . . . . 23 2 Attached 2 | . . . . . . 2 . Fabnet Peak Effective % . | . . . . . . . . Robots Rewired 6 | . . . . . . 6 . Allies Hacked . | . . . . . . . . Hacks Repelled . | . . . . . . . . Allies | -11 -10 -10 -10 -9 -8 -8 -8 -------- Run | Yrd Mat Min Exi Min Mat Gar Mat Total Allies 15 | . . 5 . . . 10 . Largest Group 5 | . . 5 5 3 . 5 . Highest-Rated Group 98 | . . 82 82 40 . 98 . Highest-Rated Ally 31 | . . 31 31 16 . 25 . Total Orders 34 | . . . . 9 . 25 . STAY 2 | . . . . . . 2 . EXPLORE 19 | . . . . 4 . 15 . RETURN 13 | . . . . 5 . 8 . Ally Attacks 102 | . . . . 47 . 55 . Total Damage 1675 | . . . . 439 . 1236 . Kills 21 | . . . . 9 . 12 . Allies Corrupted . | . . . . . . . . Allies Melted 1 | . . . . . . 1 . Intel | -11 -10 -10 -10 -9 -8 -8 -8 ------- Run | Yrd Mat Min Exi Min Mat Gar Mat Active Infowar (turns) 1127 | . 219 524 383 1 . . . Sensors 1127 | . 219 524 383 1 . . . Robot Analysis Total . | . . . . . . . . Derelict Logs Recovered 3 | . . 2 . 1 . . . Drone Launches 30 | . . . . 13 . 17 . Drone Recoveries 30 | . . . . 13 . 17 . Exploration | -11 -10 -10 -10 -9 -8 -8 -8 ------------- Run | Yrd Mat Min Exi Min Mat Gar Mat Turns Passed 8671 | 76 900 524 759 934 989 4378 111 Spaces Moved 5870 | 57 596 252 591 438 1182 2718 36 Core 15 | 4 . . . . . 1 10 Treads . | . . . . . . . . Legs 3468 | 53 596 252 591 438 . 1538 . Wheels . | . . . . . . . . Hover . | . . . . . . . . Flight 2387 | . . . . . 1182 1179 26 Fastest Speed 50 | 50 120 120 120 120 50 50 50 Average Speed 91 | 115 120 120 120 176 50 77 280 Slowest Speed 900 | 120 120 120 120 190 50 400 900 Overloaded Moves . | . . . . . . . . Propulsion Burnouts . | . . . . . . . . Robots Hopped 10 | . . . . . 8 2 . Potential Cave-ins . | . . . . . . . . Cave-ins Triggered . | . . . . . . . . Exploration Rate (%) 56 | 3 82 59 82 78 51 90 6 Regions Visited 7 Branch Regions 3 Pre-discovered Areas 2 | . . 1 1 . . . . Known Exits Taken 1 | . . . . . 1 . . Unknown Exits Taken 5 | 1 1 1 1 1 . . . Scrap Searched 3 | . . 1 . 2 . . . Spaces Dug 1 | . . . . . 1 . . Terrain Destroyed 33 | . 3 . . . 23 7 . Melee . | . . . . . . . . Projectile 7 | . . . . . 7 . . AOE 26 | . 3 . . . 16 7 . Terrain Rammed . | . . . . . . . . Walls Destroyed . | . . . . . . . . Machines Disabled . | . . . . . . . . Actions | -11 -10 -10 -10 -9 -8 -8 -8 --------- Run | Yrd Mat Min Exi Min Mat Gar Mat Total 8651 | 65 666 473 642 549 1467 4749 40 Wait 2289 | . 4 222 48 65 187 1763 . Move 5844 | 56 595 251 590 437 1166 2713 36 Hop 10 | . . . . . 8 2 . Pick Up 34 | 3 1 . 1 2 15 12 . Fast Attach 22 | 5 2 . . 2 2 11 . Attach 7 | 1 . . . 1 3 2 . Detach 1 | . . . . . 1 . . Swap 56 | . 5 . . 8 14 28 1 Drop 42 | . . . 3 4 16 19 . Fire 325 | . 58 . . 30 55 179 3 Melee . | . . . . . . . . Ram . | . . . . . . . . Kick 1 | . 1 . . . . . . Crush . | . . . . . . . . Escape Stasis 2 | . . . . . . 2 . Rewire 18 | . . . . . . 18 . Trap . | . . . . . . . . Miscellaneous . | . . . . . . . . Route ------- -11/Scrapyard -10/Materials (discovered 4 exits: *Mat x3 / [*Min]) -10/Mines (discovered 2 exits: *Mat / *Exi) -10/Exiles -9/Mines -8/Materials -8/Garrison (discovered 3 exits: *Mat x3) -8/Materials History --------- Turn | Location | Event 28 | -11/Scrapyard | Discovered new exit (range 15) 77 | -11/Scrapyard | Entered Materials 312 | -10/Materials | Build established: Mutant 398 | -10/Materials | Discovered new exit (range 13) 398 | -10/Materials | Discovered new exit (range 16) 545 | -10/Materials | Discovered new exit (range 16) 641 | -10/Materials | Discovered new exit (range 8) 977 | -10/Materials | Entered Mines 982 | -10/Mines | Identified exit to Materials 1005 | -10/Mines | Learned location of Storage (-7) 1030 | -10/Mines | Met a Derelict bent on vengeance 1319 | -10/Mines | Assisted by bots powering up and referring to "LRC-V3" 1477 | -10/Mines | Deemed a non-threat by the Exiles lab entrance 1479 | -10/Mines | Discovered new exit (range 5) 1501 | -10/Mines | Entered Exiles 1501 | -10/Exiles | Accompanied by 5 allies 1531 | -10/Exiles | Led the pair of lost Derelicts to a safe place 1531 | -10/Exiles | Met 8R-AWN 1606 | -10/Exiles | Met EX-HEX 1654 | -10/Exiles | Met EX-DEC 1672 | -10/Exiles | Learned location of Zion (-6) 1776 | -10/Exiles | Met EX-BIN 1791 | -10/Exiles | Aligned with FarCom system 1792 | -10/Exiles | Given EX-Vault access code 1851 | -10/Exiles | Opened EX-Vault 1861 | -10/Exiles | Found Flying Fortress v7 1884 | -10/Exiles | Warned to stay clear of 0b10 Research branches 1995 | -10/Exiles | Visited The Gauntlet 2232 | -10/Exiles | Discovered new exit (range 14) 2260 | -10/Exiles | Left Exiles lab with Flying Fortress v7 2260 | -10/Exiles | Entered Mines 2260 | -9/Mines | Accompanied by 3 allies 2365 | -9/Mines | Found the Drone Emporium 2372 | -9/Mines | Found Prototype Device 2372 | -9/Mines | Identified Sensor Drone Bay 2529 | -9/Mines | Learned 4 Materials zone layouts 2653 | -9/Mines | Core integrity fell below 50% 2854 | -9/Mines | Received a Rocket Launcher from a helpful Derelict 2883 | -9/Mines | Discovered new exit (range 6) 2902 | -9/Mines | Found a damaged Exp. Sensor Array with a note attached 2910 | -9/Mines | Found Prototype Device 2911 | -9/Mines | Identified Exp. Sensor Array 3194 | -9/Mines | Entered Materials 3194 | -8/Materials | Evolved 4 slots: Power x1, Propulsion x2, Utility x1 4183 | -8/Materials | Identified exit to Garrison 4183 | -8/Materials | Entered Garrison 4257 | -8/Garrison | Triggered checkpoint 4329 | -8/Garrison | Triggered checkpoint 4428 | -8/Garrison | Triggered checkpoint 4429 | -8/Garrison | Triggered checkpoint 4486 | -8/Garrison | Destroyed 9 combat bots 5082 | -8/Garrison | Discovered new exit (range 17) 5087 | -8/Garrison | Identified exit to Materials 5095 | -8/Garrison | Triggered checkpoint 5535 | -8/Garrison | Garrison Relay disabled 5757 | -8/Garrison | Installed Relay Interface Framework 5783 | -8/Garrison | Triggered checkpoint 6226 | -8/Garrison | Garrison Relay disabled 6908 | -8/Garrison | Discovered exit to Materials (range 13) 6939 | -8/Garrison | Triggered checkpoint 6939 | -8/Garrison | Garrison Relay disabled 7039 | -8/Garrison | Build established: Scavenger-Mutant 7189 | -8/Garrison | Triggered checkpoint 7459 | -8/Garrison | Discovered exit to Materials (range 15) 7467 | -8/Garrison | Triggered checkpoint 7495 | -8/Garrison | Garrison Relay disabled 7803 | -8/Garrison | Triggered checkpoint 7832 | -8/Garrison | Rescued a captive Derelict 7833 | -8/Garrison | Rescued a captive Derelict 8014 | -8/Garrison | Spotted B-75 Beast 8076 | -8/Garrison | Core integrity fell below 50% 8085 | -8/Garrison | Garrison Relay disabled 8119 | -8/Garrison | Lost 4 allies 8132 | -8/Garrison | Destroyed B-75 Beast 8561 | -8/Garrison | Entered Materials 8578 | -8/Materials | Met 7R-MNS 8664 | -8/Materials | Core integrity fell below 20% 8672 | -8/Materials | Destroyed by L-31 Rogue with Katana Last Messages --------------- 08658_ Plasma Rifle destroyed. 08659_ U-05 Engineer lays Concrete. 08661_ System corrupted: Energy discharge (-51). 08662_ U-05 Engineer lays Concrete. 08663_ Adv. EMP Blaster destroyed. 08664_ ALERT: Construction progress impeded, dispatching reinforcements to local area. 08665_ U-05 Engineer lays Concrete. 08666_ B-36 Bruiser destroyed. 08667_ U-05 Engineer lays Concrete. 08667_ B-36 Bruiser destroyed. 08667_ G-50 Soldier destroyed. 08668_ Acquired 10 matter. 08668_ U-05 Engineer lays Concrete. 08669_ Force Field severed. 08670_ U-05 Engineer lays Concrete. 08670_ Critical hit (Burn: +37). 08671_ Rnf. Deuterium Engine severed. 08671_ U-05 Engineer lays Concrete. 08671_ G-47 Trooper destroyed. Map ----- +----------------------------------------------------+ | ??????????????????????????????????????????? | | ??????????????????????????????????????????? | | ??????????????????????????????????????????? | | ??????????????????????????????????????????? | | ??????????????????????????????????????????? | | ??????????????????????????????????????????? | | ??????????????????????????????????????????? | | ??????????????????????????????????????????? | | ??????????????????????????????????????????? | | ??????????????????????????????????????????? | | ??????????????????????????????????????????? | | ???????????????????????????????###########? | | ???????????????????????????????# #? | | ?????????????????????????####### #? | | ?????????????????????????# # #? | | ?????????????????????????# # #? | | ?????????????????????????# " + #? | | ?????????????????????????# # #? | | ?????????????????????????# # #? | | ?????????????????????????## ## ! #? | | ??????????????????????????# ############? | | ??????????????????????????# #???????????? | | ??????????????????????????# #???????????? | | ?????????????????##???????# #???????????? | | ??????????????############# #???????????? | | ??????????????# l@*g #####???????? | | ?????????????## /l!= #???????? | | ????????# gg[*== #???????? | | ????????# % um m%% #???????? | | ????????# % * #???????? | | ??????? h " !%% ################???????? | | ????????? % ???????????????????????? | | ????????# ????????????????????????? | | ????????# ?????????????????????????? | | ????????# ??????????????????????????? | | ????????? ???????????????????????????? | | ????????? """????????????????????????????? | | ??????????? ????????????????????????????? | | ??????????????????????????????????????????? | | ??????????????????????????????????????????? | | ??????????????????????????????????????????? | | ??????????????????????????????????????????? | | ??????????????????????????????????????????? | | ??????????????????????????????????????????? | | ??????????????????????????????????????????? | | ??????????????????????????????????????????? | | ??????????????????????????????????????????? | | ??????????????????????????????????????????? | | ??????????????????????????????????????????? | | ??????????????????????????????????????????? | +----------------------------------------------------+ Best States ------------- Heat Dissipation 59 Energy Generation 27 Energy Capacity 480 Matter Stores 300 Matter Capacity 300 Sight Range 16 Robot Scan Range 14 Terrain Scan Density 10 Armor Coverage 150 Evasion (%) 60 Relay Coupler Types 2 Relay Coupler Value 30 Item Schematics ----------------- None Robot Schematics ------------------ None Fabricated ------------ Nothing Repaired ---------- Nothing Studied --------- None Alien Tech Used ----------------- None Achievements -------------- Assimilation Complete Let Me Out Of Here Release The Drones! Challenges ------------ None Game ------ Seed VisualChipSink Manual? 0 Play Time 01:48:17 Cumulative 37.7 hours Start 2026.04.04 @ 03:07:18 End 2026.04.04 @ 17:20:02 Sessions 3 Manual Loads 0 Difficulty Rogue Special Mode None Game No. 67 Rogue 67 Adventurer 0 Explorer 0 Win Type - Total 0 Types 0/0/0/0/0/0/0/0/0/0 Lore% 15 Gallery% 23 Achievement% 20 Wizard Run 0 Options --------- Layout 0 ASCII 0 Keyboard 0 Movement Mouse Keybinds 0 Fullscreen 1 Font 24/Smallcaps Map View 38x25 Zoom Use 98% Tactical HUD 1 Map Filters NONE Filters NONE Steam 1 RUN: f55424e6-e7ad-40a9-916f-f8518b175220